[Event "CHI-ch Women 2020"]
[Site "Las Condes"]
[Date "2020.02.18"]
[Round "9.9"]
[White "Fuentes Inzunza, Lesly"]
[Black "Sanchez Tobar, Francisca Valentina"]
[Result "1-0"]
[ECO "E84"]
[WhiteElo "1851"]
[BlackElo "1757"]
[Annotator "NA"]
[PlyCount "133"]
[EventDate "2020.02.11"]
[EventType "tourn"]
[EventCountry "CHI"]
[SourceTitle "playchess.com"]
[Source "ChessBase"]
[SourceQuality "1"]
[TimeControl "5400+30"]

1. d4 {[%emt 0:07:48]} Nf6 {[%emt 0:02:51]} 2. c4 {[%emt 0:04:28]} g6 {[%emt 0:00:20]} 3. Nc3 {[%emt 0:00:05]} Bg7 {[%emt 0:00:08]} 4. e4 {[%emt 0:00:07]} d6 {[%emt 0:00:11]} 5. f3 {[%emt 0:00:14]} O-O {[%emt 0:00:36]} 6. Be3 {[%emt 0:00:13]} a6 {[%emt 0:01:17]} 7. Qd2 {[%emt 0:03:10]} Nc6 $14 {[%emt 0:01:01]} 8. Nge2 {[%emt 0:02:16]} Rb8 {[%emt 0:04:26]} 9. Nc1 {[%emt 0:24:19]} e5 {[%emt 0:02:07]} 10. d5 {[%emt 0:03:00]} Nd4 {[%emt 0:03:59]} 11. Nb3 {[%emt 0:01:38]} Nxb3 {[%emt 0:39:38]} 12. axb3 {[%emt 0:00:04]} Ne8 {[%emt 0:02:22]} 13. g4 {[%emt 0:07:56]} f5 {[%emt 0:13:06]} 14. gxf5 {[%emt 0:01:43]} gxf5 {[%emt 0:00:06]} 15. Bg5 {[%emt 0:00:41]} Bf6 {[%emt 0:05:01]} 16. Rg1 {[%emt 0:04:52]} Kh8 {[%emt 0:02:36]} 17. Bh6 {[%emt 0:10:28]} Bh4+ {[%emt 0:02:38]} 18. Kd1 {[%emt 0:01:45]} Rg8 {[%emt 0:01:02]} 19. Rxg8+ {[%emt 0:01:42]} Kxg8 {[%emt 0:00:02]} 20. exf5 {[%emt 0:08:57]} Bxf5 {[%emt 0:02:21]} 21. Ne4 {[%emt 0:01:18]} Bxe4 {[%emt 0:03:45]} 22. fxe4 {[%emt 0:01:51]} Qf6 {[%emt 0:01:08]} 23. Be2 {[%emt 0:04:58]} Qg6 {[%emt 0:06:34]} 24. Qe3 {[%emt 0:07:11]} Bf2 {[%emt 0:02:15]} 25. Qxf2 {[%emt 0:00:25]} Qxh6 {[%emt 0:00:02]} 26. Kc2 {[%emt 0:00:33]} Nf6 {[%emt 0:01:15]} 27. Rg1+ {[%emt 0:00:19]} Kf7 {[%emt 0:00:20]} 28. Qf5 {[%emt 0:00:24]} Re8 {[%emt 0:01:32]} 29. h3 {[%emt 0:01:20]} Re7 {[%emt 0:01:08]} 30. Rf1 {[%emt 0:00:20]} Kg7 {[%emt 0:00:20]} 31. Kd1 {[%emt 0:00:43]} Qg6 {[%emt 0:00:40]} 32. Qc8 {[%emt 0:00:37]} Rf7 {[%emt 0:00:36]} 33. Bd3 {[%emt 0:00:35]} Qh5+ {[%emt 0:00:33]} 34. Kc2 {[%emt 0:00:15]} Qg5 {[%emt 0:00:21]} 35. Qf5 {[%emt 0:00:39]} Qxf5 {[%emt 0:00:27]} 36. Rxf5 {[%emt 0:00:30]} Nd7 {[%emt 0:00:12]} 37. Rg5+ {[%emt 0:00:20]} Kh6 {[%emt 0:00:21]} 38. Rg8 {[%emt 0:00:33]} Rf3 {[%emt 0:00:52]} 39. Be2 {[%emt 0:00:37]} Rf2 {[%emt 0:00:18]} 40. Kd1 {[%emt 0:00:10]} Nc5 {[%emt 0:00:41]} 41. Rc8 {[%emt 0:00:36]} Rf7 {[%emt 0:00:28]} 42. Rb8 {[%emt 0:00:45]} a5 {[%emt 0:00:37]} 43. Bg4 {[%emt 0:00:21]} b6 {[%emt 0:00:24]} 44. b4 {[%emt 0:00:36]} axb4 {[%emt 0:00:06]} 45. Bf5 {[%emt 0:00:13]} Rg7 {[%emt 0:01:01]} 46. Rh8 {[%emt 0:00:32]} Nd3 {[%emt 0:00:30]} 47. Kc2 {[%emt 0:00:41]} Ne1+ {[%emt 0:00:38]} 48. Kb3 {[%emt 0:00:26]} Nf3 {[%emt 0:00:15]} 49. Kxb4 {[%emt 0:00:18]} Nd4 {[%emt 0:00:36]} 50. Bg4 {[%emt 0:00:26]} Kg5 {[%emt 0:00:21]} 51. Rf8 {[%emt 0:00:37]} Nc2+ {[%emt 0:00:33]} 52. Kb5 {[%emt 0:00:21]} Ne3 {[%emt 0:00:05]} 53. Be6 {[%emt 0:00:22]} Kh4 {[%emt 0:00:16]} 54. Rf3 {[%emt 0:00:57]} Nc2 {[%emt 0:00:49]} 55. Rf7 {[%emt 0:00:31]} Nd4+ {[%emt 0:00:41]} 56. Ka6 {[%emt 0:00:14]} Rxf7 {[%emt 0:00:07]} 57. Bxf7 {[%emt 0:00:04]} Kxh3 {[%emt 0:00:04]} 58. Kb7 {[%emt 0:00:23]} b5 {[%emt 0:01:46]} 59. cxb5 {[%emt 0:00:25]} Nxb5 {[%emt 0:00:29]} 60. Kc6 {[%emt 0:00:13]} Nd4+ {[%emt 0:00:12]} 61. Kxc7 {[%emt 0:00:10]} Kg3 {[%emt 0:00:06]} 62. Kxd6 {[%emt 0:00:19]} Kf4 {[%emt 0:00:03]} 63. Kc5 {[%emt 0:00:44]} h5 {[%emt 0:01:22]} 64. d6 {[%emt 0:00:45]} h4 {[%emt 0:00:43]} 65. d7 {[%emt 0:00:37]} h3 {[%emt 0:00:19]} 66. d8=Q {[%emt 0:00:10]} h2 {[%emt 0:00:09]} 67. Qh4+ {[%emt 0:00:14]} 1-0

[Event "CHI-ch Women 2020"]
[Site "Las Condes"]
[Date "2020.02.18"]
[Round "9.10"]
[White "Zuniga Lara, Catalina Paz"]
[Black "Melin Contreras, Valeria"]
[Result "1/2-1/2"]
[ECO "E65"]
[WhiteElo "1712"]
[BlackElo "1685"]
[Annotator "NA"]
[PlyCount "121"]
[EventDate "2020.02.11"]
[EventType "tourn"]
[EventCountry "CHI"]
[SourceTitle "playchess.com"]
[Source "ChessBase"]
[SourceQuality "1"]
[TimeControl "5400+30"]

1. d4 {[%emt 0:08:12]} Nf6 {[%emt 0:00:50]} 2. Nf3 {[%emt 0:01:02]} g6 {[%emt 0:02:43]} 3. g3 {[%emt 0:02:03]} Bg7 {[%emt 0:06:33]} 4. Bg2 {[%emt 0:01:26]} d6 {[%emt 0:03:25]} 5. O-O {[%emt 0:01:32]} O-O {[%emt 0:01:06]} 6. c4 {[%emt 0:02:02]} Nbd7 {[%emt 0:04:54]} 7. Nc3 {[%emt 0:02:39]} c5 {[%emt 0:01:18]} 8. Qc2 {[%emt 0:01:30]} cxd4 {[%emt 0:03:15]} 9. Nxd4 {[%emt 0:00:20]} Rb8 {[%emt 0:04:11]} 10. h3 {[%emt 0:03:40]} Nc5 {[%emt 0:02:22]} 11. Be3 {[%emt 0:03:04]} e5 {[%emt 0:09:51]} 12. Ndb5 {[%emt 0:03:00]} a6 {[%emt 0:00:47]} 13. b4 {[%emt 0:02:00]} Bf5 {[%emt 0:09:07]} 14. Qd2 {[%emt 0:06:09]} Nce4 {[%emt 0:03:38]} 15. Nxe4 {[%emt 0:01:08]} Nxe4 {[%emt 0:00:32]} 16. Bxe4 {[%emt 0:00:25]} axb5 {[%emt 0:03:18]} 17. Bxf5 {[%emt 0:01:58]} gxf5 {[%emt 0:03:02]} 18. Qd5 {[%emt 0:00:30]} f4 {[%emt 0:02:22]} 19. Ba7 {[%emt 0:02:28]} Ra8 {[%emt 0:02:28]} 20. Qxb7 {[%emt 0:02:34]} Qg5 {[%emt 0:02:55]} 21. Kh2 {[%emt 0:00:03]} e4 {[%emt 0:08:42]} 22. Rad1 {[%emt 0:09:43]} fxg3+ {[%emt 0:01:01]} 23. fxg3 {[%emt 0:00:05]} Be5 {[%emt 0:00:24]} 24. Rg1 {[%emt 0:00:18]} bxc4 {[%emt 0:00:27]} 25. Bd4 {[%emt 0:00:40]} Rxa2 {[%emt 0:04:38]} 26. Bxe5 {[%emt 0:07:29]} Rxe2+ {[%emt 0:00:00]} 27. Rg2 {[%emt 0:03:22]} Rxg2+ {[%emt 0:00:00]} 28. Kxg2 {[%emt 0:00:06]} Qxe5 {[%emt 0:00:00]} 29. h4 {[%emt 0:00:28]} e3 {[%emt 0:01:31]} 30. Qd5 {[%emt 0:03:26]} Qxd5+ {[%emt 0:00:28]} 31. Rxd5 {[%emt 0:00:04]} e2 {[%emt 0:01:25]} 32. Kf2 {[%emt 0:00:30]} Re8 {[%emt 0:00:11]} 33. Ke1 {[%emt 0:00:23]} Re3 {[%emt 0:04:04]} 34. Rxd6 {[%emt 0:00:41]} Rxg3 {[%emt 0:01:01]} 35. Rd4 {[%emt 0:00:04]} c3 {[%emt 0:00:42]} 36. Kxe2 {[%emt 0:00:59]} Kf8 {[%emt 0:03:30]} 37. b5 {[%emt 0:01:01]} c2 {[%emt 0:01:37]} 38. Kd2 {[%emt 0:00:16]} Rb3 {[%emt 0:00:20]} 39. Rd5 {[%emt 0:00:14]} Rb2 {[%emt 0:01:23]} 40. Kc1 {[%emt 0:00:05]} Rb4 {[%emt 0:01:05]} 41. h5 {[%emt 0:00:16]} Rc4 {[%emt 0:00:08]} 42. b6 {[%emt 0:00:22]} Rb4 {[%emt 0:02:54]} 43. Rd6 {[%emt 0:05:34]} Rb5 {[%emt 0:00:58]} 44. Kxc2 {[%emt 0:00:40]} Kg7 {[%emt 0:03:19]} 45. h6+ {[%emt 0:03:33]} Kf8 {[%emt 0:00:05]} 46. Kd3 {[%emt 0:00:07]} Ke7 {[%emt 0:00:23]} 47. Rc6 {[%emt 0:00:20]} Rb1 {[%emt 0:02:19]} 48. Kd4 {[%emt 0:10:44]} Kd7 {[%emt 0:00:43]} 49. Rf6 {[%emt 0:00:23]} Ke7 {[%emt 0:00:07]} 50. Rc6 {[%emt 0:05:04]} Kd7 {[%emt 0:00:07]} 51. Rf6 {[%emt 0:05:17]} Ke7 {[%emt 0:01:26]} 52. Rc6 {[%emt 0:04:15]} Rb2 {[%emt 0:01:25]} 53. Ke4 {[%emt 0:01:03]} Kd7 {[%emt 0:00:19]} 54. Rc7+ {[%emt 0:00:52]} Ke6 {[%emt 0:00:11]} 55. Rc6+ {[%emt 0:00:23]} Kd7 {[%emt 0:00:58]} 56. Rc7+ {[%emt 0:00:36]} Ke6 {[%emt 0:00:32]} 57. b7 {[%emt 0:00:42]} Kf6 {[%emt 0:00:44]} 58. Kf4 {[%emt 0:00:20]} Rb4+ {[%emt 0:00:22]} 59. Kg3 {[%emt 0:00:13]} Kg6 {[%emt 0:00:31]} 60. Kf3 {[%emt 0:00:30]} f6 {[%emt 0:00:33]} 61. Kg3 {[%emt 0:00:37]} 1/2-1/2